[Event "Titled Tuesday Blitz May 9 Early 2023"]
[White "Erzhanov, Arman"]
[Black "Molina, Roberto Junio Brito"]
[WhiteFideId "4138821"]
[BlackFideId "2109450"]
[WhiteElo "2138"]
[BlackElo "2376"]
[Result "0-1"]
[Round "02"]
[TimeControl "180+2"]
[Date "2023.05.09"]
[WhiteClock "0:00:00"]
[BlackClock "0:01:19"]

1. e4 {[%clk 0:03:00]}  c6 {[%clk 0:02:59]} 2. d4 {[%clk 0:02:59]}  d5 {[%clk 0:03:00]} 3. exd5 {[%clk 0:02:59]}  cxd5 {[%clk 0:03:00]} 4. c4 {[%clk 0:03:00]}  Nf6 {[%clk 0:03:00]} 5. Nc3 {[%clk 0:03:01]}  e6 {[%clk 0:03:00]} 6. c5 {[%clk 0:03:01]}  Be7 {[%clk 0:03:00]} 7. Nf3 {[%clk 0:03:01]}  O-O {[%clk 0:03:01]} 8. Qc2 {[%clk 0:03:01]}  Ne4 {[%clk 0:03:00]} 9. Nxe4 {[%clk 0:03:01]}  dxe4 {[%clk 0:03:00]} 10. Qxe4 {[%clk 0:03:01]}  Nc6 {[%clk 0:03:01]} 11. Bd3 {[%clk 0:03:01]}  f5 {[%clk 0:02:57]} 12. Qe3 {[%clk 0:02:56]}  Bf6 {[%clk 0:02:57]} 13. O-O {[%clk 0:02:38]}  Nxd4 {[%clk 0:02:57]} 14. Bc4 {[%clk 0:02:27]}  Nxf3+ {[%clk 0:02:50]} 15. Qxf3 {[%clk 0:02:26]}  Qc7 {[%clk 0:02:49]} 16. Qxf5 {[%clk 0:02:12]}  Kh8 {[%clk 0:02:46]} 17. Bxe6 {[%clk 0:01:53]}  Bxe6 {[%clk 0:02:33]} 18. Qxe6 {[%clk 0:01:53]}  Rae8 {[%clk 0:02:27]} 19. Qc4 {[%clk 0:01:52]}  Re5 {[%clk 0:02:22]} 20. Bf4 {[%clk 0:01:32]}  Rxc5 {[%clk 0:02:21]} 21. Qb4 {[%clk 0:01:24]}  Qc8 {[%clk 0:01:49]} 22. Bd6 {[%clk 0:01:18]}  Rc4 {[%clk 0:01:48]} 23. Bxf8 {[%clk 0:01:06]}  Rxb4 {[%clk 0:01:48]} 24. Bxb4 {[%clk 0:01:07]}  Bxb2 {[%clk 0:01:48]} 25. Rab1 {[%clk 0:01:08]}  Bf6 {[%clk 0:01:47]} 26. Bd2 {[%clk 0:01:06]}  h6 {[%clk 0:01:40]} 27. Be3 {[%clk 0:01:06]}  a5 {[%clk 0:01:36]} 28. Rb5 {[%clk 0:01:05]}  Qc4 {[%clk 0:01:34]} 29. Rxa5 {[%clk 0:01:00]}  b5 {[%clk 0:01:35]} 30. Rb1 {[%clk 0:00:59]}  b4 {[%clk 0:01:35]} 31. Ra8+ {[%clk 0:00:53]}  Kh7 {[%clk 0:01:35]} 32. Ra7 {[%clk 0:00:44]}  Kg6 {[%clk 0:01:34]} 33. h3 {[%clk 0:00:42]}  h5 {[%clk 0:01:33]} 34. g3 {[%clk 0:00:34]}  h4 {[%clk 0:01:31]} 35. g4 {[%clk 0:00:30]}  Bc3 {[%clk 0:01:21]} 36. Rd1 {[%clk 0:00:21]}  Qe2 {[%clk 0:01:20]} 37. Rd6+ {[%clk 0:00:20]}  Kh7 {[%clk 0:01:20]} 38. Rh6+ {[%clk 0:00:19]}  Kg8 {[%clk 0:01:20]} 39. Ra8+ {[%clk 0:00:19]}  Kf7 {[%clk 0:01:20]} 40. Rb6 {[%clk 0:00:18]}  Qd1+ {[%clk 0:01:19]} 41. Kg2 {[%clk 0:00:00]}  Qd5+ {[%clk 0:01:19]} 0-1


[Site "https://www.chess.com"]

[Event "Titled Tuesday Blitz May 9 Early 2023"]
[White "Moroni, Luca Jr"]
[Black "Boldoo, Erdenepurev"]
[WhiteFideId "865834"]
[BlackFideId "4901037"]
[WhiteElo "2569"]
[BlackElo "2299"]
[Result "1-0"]
[Round "02"]
[TimeControl "180+2"]
[Date "2023.05.09"]
[WhiteClock "0:01:12"]
[BlackClock "0:00:19"]

1. d4 {[%clk 0:03:00]}  d5 {[%clk 0:02:55]} 2. Bf4 {[%clk 0:03:00]}  c6 {[%clk 0:02:55]} 3. e3 {[%clk 0:03:00]}  Nf6 {[%clk 0:02:53]} 4. c4 {[%clk 0:03:00]}  Bf5 {[%clk 0:02:52]} 5. Qb3 {[%clk 0:02:59]}  Qb6 {[%clk 0:02:51]} 6. c5 {[%clk 0:02:55]}  Qxb3 {[%clk 0:02:46]} 7. axb3 {[%clk 0:02:56]}  a6 {[%clk 0:02:40]} 8. Nc3 {[%clk 0:02:55]}  Nbd7 {[%clk 0:02:38]} 9. h3 {[%clk 0:02:55]}  h6 {[%clk 0:02:36]} 10. b4 {[%clk 0:02:55]}  Rc8 {[%clk 0:02:35]} 11. Nf3 {[%clk 0:02:55]}  g5 {[%clk 0:02:33]} 12. Bh2 {[%clk 0:02:55]}  Bg7 {[%clk 0:02:32]} 13. Nd2 {[%clk 0:02:54]}  e5 {[%clk 0:01:51]} 14. g4 {[%clk 0:02:24]}  exd4 {[%clk 0:01:42]} 15. exd4 {[%clk 0:02:23]}  Bc2 {[%clk 0:01:36]} 16. Bd6 {[%clk 0:02:10]}  Kd8 {[%clk 0:01:28]} 17. Nf3 {[%clk 0:02:01]}  Re8+ {[%clk 0:01:16]} 18. Kd2 {[%clk 0:02:00]}  Bg6 {[%clk 0:00:48]} 19. Bd3 {[%clk 0:01:43]}  Ne4+ {[%clk 0:00:46]} 20. Bxe4 {[%clk 0:01:42]}  dxe4 {[%clk 0:00:47]} 21. Ne5 {[%clk 0:01:42]}  Nxe5 {[%clk 0:00:45]} 22. dxe5 {[%clk 0:01:43]}  Bxe5 {[%clk 0:00:46]} 23. Ke3 {[%clk 0:01:35]}  Bxd6 {[%clk 0:00:42]} 24. cxd6 {[%clk 0:01:35]}  Kd7 {[%clk 0:00:32]} 25. Rhd1 {[%clk 0:01:34]}  Rcd8 {[%clk 0:00:31]} 26. Na4 {[%clk 0:01:31]}  Kc8 {[%clk 0:00:22]} 27. d7+ {[%clk 0:01:31]}  Kc7 {[%clk 0:00:18]} 28. dxe8=Q {[%clk 0:01:30]}  Rxe8 {[%clk 0:00:19]} 29. Nc5 {[%clk 0:01:29]}  h5 {[%clk 0:00:18]} 30. Rd7+ {[%clk 0:01:27]}  Kc8 {[%clk 0:00:18]} 31. Rad1 {[%clk 0:01:23]}  hxg4 {[%clk 0:00:17]} 32. hxg4 {[%clk 0:01:24]}  f5 {[%clk 0:00:18]} 33. gxf5 {[%clk 0:01:22]}  Bxf5 {[%clk 0:00:19]} 34. Rxb7 {[%clk 0:01:20]}  Bg4 {[%clk 0:00:19]} 35. Rd6 {[%clk 0:01:19]}  Rf8 {[%clk 0:00:18]} 36. Rxc6+ {[%clk 0:01:18]}  Kd8 {[%clk 0:00:19]} 37. Rb8+ {[%clk 0:01:14]}  Ke7 {[%clk 0:00:19]} 38. Rxf8 {[%clk 0:01:12]}  Kxf8 {[%clk 0:00:19]} 39. Rxa6 {[%clk 0:01:12]} 1-0


[Site "https://www.chess.com"]

[Event "Titled Tuesday Blitz May 9 Early 2023"]
[White "Baghdasaryan, Vahe"]
[Black "Djordjevic, Vuk"]
[WhiteFideId "13303139"]
[BlackFideId "902098"]
[WhiteElo "2216"]
[BlackElo "2452"]
[Result "0-1"]
[Round "02"]
[TimeControl "180+2"]
[Date "2023.05.09"]
[WhiteClock "0:00:00"]
[BlackClock "0:00:06"]

1. e4 {[%clk 0:03:00]}  d5 {[%clk 0:03:00]} 2. exd5 {[%clk 0:02:57]}  Qxd5 {[%clk 0:03:00]} 3. Nf3 {[%clk 0:02:57]}  Bg4 {[%clk 0:03:00]} 4. Be2 {[%clk 0:02:56]}  Nc6 {[%clk 0:03:00]} 5. d4 {[%clk 0:02:56]}  Bxf3 {[%clk 0:02:54]} 6. Bxf3 {[%clk 0:02:56]}  Qe6+ {[%clk 0:02:54]} 7. Be3 {[%clk 0:02:55]}  O-O-O {[%clk 0:02:50]} 8. d5 {[%clk 0:02:34]}  Qe5 {[%clk 0:02:32]} 9. O-O {[%clk 0:02:33]}  e6 {[%clk 0:02:26]} 10. dxc6 {[%clk 0:02:03]}  Rxd1 {[%clk 0:02:24]} 11. cxb7+ {[%clk 0:02:02]}  Kb8 {[%clk 0:02:21]} 12. Rxd1 {[%clk 0:02:03]}  Bd6 {[%clk 0:02:18]} 13. Nc3 {[%clk 0:01:56]}  Ne7 {[%clk 0:02:03]} 14. a4 {[%clk 0:01:27]}  Qxh2+ {[%clk 0:01:58]} 15. Kf1 {[%clk 0:01:26]}  Nf5 {[%clk 0:01:58]} 16. Bxa7+ {[%clk 0:00:45]}  Kxa7 {[%clk 0:01:58]} 17. Nb5+ {[%clk 0:00:44]}  Ka6 {[%clk 0:01:30]} 18. a5 {[%clk 0:00:17]}  Kxb5 {[%clk 0:00:42]} 19. a6 {[%clk 0:00:16]}  Bc5 {[%clk 0:00:26]} 20. c4+ {[%clk 0:00:11]}  Kb4 {[%clk 0:00:17]} 21. a7 {[%clk 0:00:10]}  Bxa7 {[%clk 0:00:16]} 22. Rxa7 {[%clk 0:00:09]}  c5 {[%clk 0:00:13]} 23. Ra8 {[%clk 0:00:09]}  Rb8 {[%clk 0:00:12]} 24. Rd8 {[%clk 0:00:08]}  Nd4 {[%clk 0:00:05]} 25. Rxd4 {[%clk 0:00:03]}  cxd4 {[%clk 0:00:06]} 26. g3 {[%clk 0:00:03]}  Qh3+ {[%clk 0:00:06]} 27. Bg2 {[%clk 0:00:03]}  Qg4 {[%clk 0:00:05]} 28. f3 {[%clk 0:00:00]}  Qxg3 {[%clk 0:00:06]} 0-1


[Site "https://www.chess.com"]

[Event "Titled Tuesday Blitz May 9 Early 2023"]
[White "egorchess95"]
[Black "Kaasen, Tor Fredrik"]
[BlackFideId "1516647"]
[WhiteElo "2535"]
[BlackElo "2349"]
[Result "0-1"]
[Round "02"]
[TimeControl "180+2"]
[Date "2023.05.09"]
[WhiteClock "0:00:00"]
[BlackClock "0:00:12"]

1. e4 {[%clk 0:03:00]}  c5 {[%clk 0:02:59]} 2. Nf3 {[%clk 0:03:00]}  Nc6 {[%clk 0:02:59]} 3. d4 {[%clk 0:03:00]}  cxd4 {[%clk 0:02:59]} 4. Nxd4 {[%clk 0:03:01]}  Nf6 {[%clk 0:02:59]} 5. Nc3 {[%clk 0:03:01]}  d6 {[%clk 0:03:00]} 6. Bg5 {[%clk 0:03:01]}  e6 {[%clk 0:03:00]} 7. Qd2 {[%clk 0:03:00]}  a6 {[%clk 0:03:00]} 8. f3 {[%clk 0:03:00]}  Nxd4 {[%clk 0:02:56]} 9. Qxd4 {[%clk 0:03:00]}  Be7 {[%clk 0:02:56]} 10. O-O-O {[%clk 0:02:59]}  Bd7 {[%clk 0:02:56]} 11. g4 {[%clk 0:02:53]}  h5 {[%clk 0:02:55]} 12. Be2 {[%clk 0:02:44]}  hxg4 {[%clk 0:02:44]} 13. fxg4 {[%clk 0:02:43]}  Qa5 {[%clk 0:02:31]} 14. Bd2 {[%clk 0:02:40]}  Qe5 {[%clk 0:02:13]} 15. Qd3 {[%clk 0:02:34]}  Bc6 {[%clk 0:02:10]} 16. Bf3 {[%clk 0:02:32]}  Nd7 {[%clk 0:02:09]} 17. Qe2 {[%clk 0:01:55]}  O-O-O {[%clk 0:02:02]} 18. Kb1 {[%clk 0:01:36]}  Rh3 {[%clk 0:02:00]} 19. Be3 {[%clk 0:01:33]}  Bf6 {[%clk 0:01:32]} 20. Bg2 {[%clk 0:00:33]}  Rxh2 {[%clk 0:01:30]} 21. Rxh2 {[%clk 0:00:24]}  Qxh2 {[%clk 0:01:31]} 22. Rh1 {[%clk 0:00:13]}  Qe5 {[%clk 0:01:31]} 23. Qd2 {[%clk 0:00:06]}  Qa5 {[%clk 0:01:27]} 24. Bd4 {[%clk 0:00:03]}  Bxd4 {[%clk 0:01:26]} 25. Qxd4 {[%clk 0:00:04]}  Ne5 {[%clk 0:01:21]} 26. Rh7 {[%clk 0:00:05]}  g6 {[%clk 0:01:18]} 27. a3 {[%clk 0:00:04]}  Qc5 {[%clk 0:01:18]} 28. Qd2 {[%clk 0:00:05]}  Nc4 {[%clk 0:01:16]} 29. Qc1 {[%clk 0:00:03]}  Qf2 {[%clk 0:01:07]} 30. Bf1 {[%clk 0:00:02]}  Qxf1 {[%clk 0:01:07]} 31. Qxf1 {[%clk 0:00:01]}  Nd2+ {[%clk 0:01:07]} 32. Ka2 {[%clk 0:00:02]}  Nxf1 {[%clk 0:01:08]} 33. Rxf7 {[%clk 0:00:02]}  Ne3 {[%clk 0:01:01]} 34. Rf6 {[%clk 0:00:01]}  Nxg4 {[%clk 0:01:02]} 35. Rxg6 {[%clk 0:00:02]}  Nf2 {[%clk 0:00:59]} 36. Rxe6 {[%clk 0:00:02]}  Kd7 {[%clk 0:00:59]} 37. Rh6 {[%clk 0:00:02]}  Nxe4 {[%clk 0:01:00]} 38. Rh7+ {[%clk 0:00:03]}  Kc8 {[%clk 0:01:00]} 39. Ne2 {[%clk 0:00:03]}  Rd7 {[%clk 0:00:59]} 40. Rh8+ {[%clk 0:00:03]}  Kc7 {[%clk 0:01:00]} 41. Nd4 {[%clk 0:00:03]}  d5 {[%clk 0:00:56]} 42. Rh6 {[%clk 0:00:02]}  Rd6 {[%clk 0:00:50]} 43. Rh7+ {[%clk 0:00:03]}  Kb6 {[%clk 0:00:51]} 44. b3 {[%clk 0:00:03]}  Rf6 {[%clk 0:00:49]} 45. Kb2 {[%clk 0:00:03]}  Rf2 {[%clk 0:00:47]} 46. a4 {[%clk 0:00:03]}  Kc5 {[%clk 0:00:40]} 47. Ne6+ {[%clk 0:00:03]}  Kd6 {[%clk 0:00:40]} 48. Nd8 {[%clk 0:00:02]}  d4 {[%clk 0:00:37]} 49. Rh6+ {[%clk 0:00:02]}  Ke5 {[%clk 0:00:27]} 50. Rh5+ {[%clk 0:00:02]}  Rf5 {[%clk 0:00:15]} 51. Rh6 {[%clk 0:00:01]}  Bd5 {[%clk 0:00:13]} 52. Rh7 {[%clk 0:00:02]}  Rf1 {[%clk 0:00:13]} 53. Rh5+ {[%clk 0:00:02]}  Kd6 {[%clk 0:00:12]} 54. Rh3 {[%clk 0:00:02]}  Nc3 {[%clk 0:00:12]} 55. Rh6+ {[%clk 0:00:00]}  Kc5 {[%clk 0:00:12]} 0-1


[Site "https://www.chess.com"]

[Event "Titled Tuesday Blitz May 9 Early 2023"]
[White "Csonka, Balazs"]
[Black "Lehtosaari, Mauri"]
[WhiteFideId "742910"]
[BlackFideId "501999"]
[WhiteElo "2404"]
[BlackElo "2532"]
[Result "1-0"]
[Round "02"]
[TimeControl "180+2"]
[Date "2023.05.09"]
[WhiteClock "0:00:37"]
[BlackClock "0:00:47"]

1. c4 {[%clk 0:03:00]}  c6 {[%clk 0:02:55]} 2. g3 {[%clk 0:02:59]}  d5 {[%clk 0:02:50]} 3. Bg2 {[%clk 0:03:00]}  Nf6 {[%clk 0:02:50]} 4. Nf3 {[%clk 0:03:00]}  Bf5 {[%clk 0:02:47]} 5. Qb3 {[%clk 0:02:47]}  Qb6 {[%clk 0:02:43]} 6. cxd5 {[%clk 0:02:45]}  Nxd5 {[%clk 0:02:37]} 7. Qa4 {[%clk 0:02:24]}  Bxb1 {[%clk 0:02:09]} 8. Rxb1 {[%clk 0:02:24]}  e6 {[%clk 0:02:09]} 9. O-O {[%clk 0:02:21]}  Nd7 {[%clk 0:02:06]} 10. d4 {[%clk 0:02:04]}  N7f6 {[%clk 0:02:00]} 11. a3 {[%clk 0:01:57]}  Be7 {[%clk 0:01:59]} 12. Qc2 {[%clk 0:01:56]}  O-O {[%clk 0:01:51]} 13. e4 {[%clk 0:01:56]}  Nc7 {[%clk 0:01:49]} 14. Be3 {[%clk 0:01:56]}  Qa5 {[%clk 0:01:47]} 15. Rfc1 {[%clk 0:01:49]}  Rac8 {[%clk 0:01:31]} 16. Nd2 {[%clk 0:01:40]}  Qh5 {[%clk 0:01:23]} 17. h3 {[%clk 0:01:22]}  Rfd8 {[%clk 0:01:18]} 18. g4 {[%clk 0:01:05]}  Qg6 {[%clk 0:01:16]} 19. f4 {[%clk 0:01:02]}  Nxg4 {[%clk 0:01:07]} 20. hxg4 {[%clk 0:01:03]}  Qxg4 {[%clk 0:01:08]} 21. Nf3 {[%clk 0:00:55]}  Nb5 {[%clk 0:01:02]} 22. a4 {[%clk 0:00:52]}  Nd6 {[%clk 0:01:02]} 23. Ne5 {[%clk 0:00:52]}  Qh4 {[%clk 0:00:56]} 24. Qf2 {[%clk 0:00:46]}  Qxf2+ {[%clk 0:00:53]} 25. Kxf2 {[%clk 0:00:47]}  a6 {[%clk 0:00:53]} 26. Nc4 {[%clk 0:00:41]}  Bh4+ {[%clk 0:00:50]} 27. Ke2 {[%clk 0:00:40]}  g6 {[%clk 0:00:49]} 28. Nxd6 {[%clk 0:00:37]}  Rxd6 {[%clk 0:00:50]} 29. b4 {[%clk 0:00:37]}  Bf6 {[%clk 0:00:47]} 30. e5 {[%clk 0:00:37]} 1-0


[Site "https://www.chess.com"]

[Event "Titled Tuesday Blitz May 9 Early 2023"]
[White "ArtemDyachuk"]
[Black "Cherniaiev, Tykhon"]
[BlackFideId "14182360"]
[WhiteElo "2531"]
[BlackElo "2450"]
[Result "1-0"]
[Round "02"]
[TimeControl "180+2"]
[Date "2023.05.09"]
[WhiteClock "0:00:03"]
[BlackClock "0:00:18"]

1. Nf3 {[%clk 0:03:00]}  Nf6 {[%clk 0:02:58]} 2. b3 {[%clk 0:03:00]}  d5 {[%clk 0:02:58]} 3. e3 {[%clk 0:02:57]}  c5 {[%clk 0:02:58]} 4. Bb2 {[%clk 0:02:55]}  Nc6 {[%clk 0:02:56]} 5. Bb5 {[%clk 0:02:54]}  Bg4 {[%clk 0:02:56]} 6. h3 {[%clk 0:02:47]}  Bxf3 {[%clk 0:02:53]} 7. Qxf3 {[%clk 0:02:45]}  e6 {[%clk 0:02:54]} 8. O-O {[%clk 0:02:34]}  a6 {[%clk 0:02:54]} 9. Bxc6+ {[%clk 0:02:32]}  bxc6 {[%clk 0:02:54]} 10. d4 {[%clk 0:02:32]}  cxd4 {[%clk 0:02:54]} 11. exd4 {[%clk 0:02:32]}  c5 {[%clk 0:02:54]} 12. c4 {[%clk 0:02:22]}  cxd4 {[%clk 0:02:49]} 13. Bxd4 {[%clk 0:02:21]}  Be7 {[%clk 0:02:50]} 14. cxd5 {[%clk 0:02:09]}  exd5 {[%clk 0:02:51]} 15. Nc3 {[%clk 0:02:07]}  O-O {[%clk 0:02:51]} 16. Rfe1 {[%clk 0:02:06]}  Bb4 {[%clk 0:02:09]} 17. a3 {[%clk 0:01:40]}  Bxc3 {[%clk 0:02:03]} 18. Qxc3 {[%clk 0:01:41]}  Ne4 {[%clk 0:01:42]} 19. Qb2 {[%clk 0:01:39]}  f6 {[%clk 0:01:41]} 20. Rad1 {[%clk 0:01:18]}  Re8 {[%clk 0:01:21]} 21. b4 {[%clk 0:01:17]}  Qd7 {[%clk 0:01:14]} 22. Qb3 {[%clk 0:01:01]}  Qf7 {[%clk 0:01:01]} 23. a4 {[%clk 0:00:56]}  Rab8 {[%clk 0:00:51]} 24. b5 {[%clk 0:00:56]}  axb5 {[%clk 0:00:42]} 25. axb5 {[%clk 0:00:57]}  Nd6 {[%clk 0:00:38]} 26. Rxe8+ {[%clk 0:00:51]}  Rxe8 {[%clk 0:00:35]} 27. Bc5 {[%clk 0:00:37]}  Nc4 {[%clk 0:00:34]} 28. b6 {[%clk 0:00:32]}  Rb8 {[%clk 0:00:33]} 29. Ra1 {[%clk 0:00:26]}  h6 {[%clk 0:00:26]} 30. Ra7 {[%clk 0:00:25]}  Rb7 {[%clk 0:00:21]} 31. Qb5 {[%clk 0:00:23]}  Ne5 {[%clk 0:00:06]} 32. Qa6 {[%clk 0:00:21]}  Rd7 {[%clk 0:00:06]} 33. b7 {[%clk 0:00:17]}  Rxb7 {[%clk 0:00:05]} 34. Qxb7 {[%clk 0:00:16]}  Qg6 {[%clk 0:00:05]} 35. Qxd5+ {[%clk 0:00:16]}  Kh7 {[%clk 0:00:06]} 36. Ra8 {[%clk 0:00:15]}  Qb1+ {[%clk 0:00:06]} 37. Kh2 {[%clk 0:00:15]}  Qf5 {[%clk 0:00:05]} 38. Qg8+ {[%clk 0:00:14]}  Kg6 {[%clk 0:00:06]} 39. Qe8+ {[%clk 0:00:14]}  Kh7 {[%clk 0:00:06]} 40. Be3 {[%clk 0:00:14]}  Qe4 {[%clk 0:00:06]} 41. Qh8+ {[%clk 0:00:13]}  Kg6 {[%clk 0:00:06]} 42. Qe8+ {[%clk 0:00:13]}  Kh7 {[%clk 0:00:06]} 43. Qa4 {[%clk 0:00:13]}  Qf5 {[%clk 0:00:03]} 44. Re8 {[%clk 0:00:10]}  Ng6 {[%clk 0:00:03]} 45. Qe4 {[%clk 0:00:09]}  Qd7 {[%clk 0:00:03]} 46. h4 {[%clk 0:00:09]}  h5 {[%clk 0:00:03]} 47. Qe6 {[%clk 0:00:06]}  Qc7+ {[%clk 0:00:04]} 48. g3 {[%clk 0:00:06]}  Ne5 {[%clk 0:00:02]} 49. Qg8+ {[%clk 0:00:06]}  Kg6 {[%clk 0:00:03]} 50. Re6 {[%clk 0:00:06]}  Ng4+ {[%clk 0:00:03]} 51. Kh3 {[%clk 0:00:05]}  Qb7 {[%clk 0:00:02]} 52. Qe8+ {[%clk 0:00:04]}  Kf5 {[%clk 0:00:03]} 53. Qxh5+ {[%clk 0:00:03]}  Kxe6 {[%clk 0:00:03]} 54. Qxg4+ {[%clk 0:00:03]}  Kf7 {[%clk 0:00:03]} 55. Kh2 {[%clk 0:00:04]}  Qd5 {[%clk 0:00:02]} 56. h5 {[%clk 0:00:04]}  Qe5 {[%clk 0:00:01]} 57. Qg6+ {[%clk 0:00:04]}  Kf8 {[%clk 0:00:01]} 58. h6 {[%clk 0:00:04]}  gxh6 {[%clk 0:00:02]} 59. Bxh6+ {[%clk 0:00:03]}  Ke7 {[%clk 0:00:03]} 60. Bg7 {[%clk 0:00:03]}  Ke6 {[%clk 0:00:02]} 61. Qxf6+ {[%clk 0:00:03]}  Qxf6 {[%clk 0:00:03]} 62. Bxf6 {[%clk 0:00:03]}  Kxf6 {[%clk 0:00:04]} 63. f4 {[%clk 0:00:03]}  Kf5 {[%clk 0:00:05]} 64. Kg2 {[%clk 0:00:03]}  Kg4 {[%clk 0:00:06]} 65. Kf2 {[%clk 0:00:03]}  Kf5 {[%clk 0:00:06]} 66. Kf3 {[%clk 0:00:03]}  Kf6 {[%clk 0:00:07]} 67. g4 {[%clk 0:00:04]}  Kg6 {[%clk 0:00:08]} 68. Ke4 {[%clk 0:00:04]}  Kf6 {[%clk 0:00:09]} 69. f5 {[%clk 0:00:03]}  Kf7 {[%clk 0:00:10]} 70. Ke5 {[%clk 0:00:04]}  Ke7 {[%clk 0:00:11]} 71. g5 {[%clk 0:00:04]}  Kf7 {[%clk 0:00:12]} 72. g6+ {[%clk 0:00:04]}  Kg7 {[%clk 0:00:13]} 73. Ke6 {[%clk 0:00:03]}  Kh8 {[%clk 0:00:13]} 74. f6 {[%clk 0:00:03]}  Kg8 {[%clk 0:00:14]} 75. Ke7 {[%clk 0:00:03]}  Kh8 {[%clk 0:00:14]} 76. f7 {[%clk 0:00:03]}  Kg7 {[%clk 0:00:15]} 77. f8=Q+ {[%clk 0:00:04]}  Kxg6 {[%clk 0:00:16]} 78. Qf4 {[%clk 0:00:04]}  Kh7 {[%clk 0:00:17]} 79. Qg5 {[%clk 0:00:03]}  Kh8 {[%clk 0:00:18]} 80. Kf7 {[%clk 0:00:04]}  Kh7 {[%clk 0:00:18]} 81. Qh5# {[%clk 0:00:03]} 1-0


[Site "https://www.chess.com"]

[Event "Titled Tuesday Blitz May 9 Early 2023"]
[White "Klukin, Kirill"]
[Black "Spalir, Jernej"]
[WhiteFideId "24199273"]
[BlackFideId "14606518"]
[WhiteElo "2344"]
[BlackElo "2282"]
[Result "1-0"]
[Round "02"]
[TimeControl "180+2"]
[Date "2023.05.09"]
[WhiteClock "0:00:23"]
[BlackClock "0:01:14"]

1. e4 {[%clk 0:02:55]}  e5 {[%clk 0:02:59]} 2. Nf3 {[%clk 0:02:55]}  Nc6 {[%clk 0:02:59]} 3. Bc4 {[%clk 0:02:55]}  Bc5 {[%clk 0:02:59]} 4. b4 {[%clk 0:02:55]}  Bxb4 {[%clk 0:02:59]} 5. c3 {[%clk 0:02:55]}  Ba5 {[%clk 0:02:59]} 6. d4 {[%clk 0:02:56]}  d6 {[%clk 0:02:54]} 7. Qb3 {[%clk 0:02:52]}  Qd7 {[%clk 0:02:50]} 8. O-O {[%clk 0:02:47]}  Bb6 {[%clk 0:02:50]} 9. dxe5 {[%clk 0:02:37]}  Na5 {[%clk 0:02:49]} 10. Qb4 {[%clk 0:02:16]}  Nxc4 {[%clk 0:02:42]} 11. Qxc4 {[%clk 0:02:16]}  Qe6 {[%clk 0:02:43]} 12. Qxe6+ {[%clk 0:02:06]}  Bxe6 {[%clk 0:02:44]} 13. exd6 {[%clk 0:02:07]}  cxd6 {[%clk 0:02:44]} 14. Bf4 {[%clk 0:02:07]}  Ke7 {[%clk 0:02:43]} 15. Na3 {[%clk 0:02:06]}  a6 {[%clk 0:02:32]} 16. Rab1 {[%clk 0:02:04]}  Bc5 {[%clk 0:02:32]} 17. Rxb7+ {[%clk 0:02:04]}  Kf6 {[%clk 0:02:31]} 18. Nc2 {[%clk 0:01:51]}  Bxa2 {[%clk 0:02:30]} 19. Ncd4 {[%clk 0:01:41]}  h6 {[%clk 0:02:24]} 20. Nf5 {[%clk 0:01:17]}  Rd8 {[%clk 0:01:59]} 21. Nxd6 {[%clk 0:01:12]}  Bxd6 {[%clk 0:01:57]} 22. Bxd6 {[%clk 0:01:12]}  Ke6 {[%clk 0:01:45]} 23. Bb4 {[%clk 0:01:06]}  h5 {[%clk 0:01:31]} 24. h3 {[%clk 0:00:58]}  Nh6 {[%clk 0:01:31]} 25. Nd4+ {[%clk 0:00:40]}  Kf6 {[%clk 0:01:28]} 26. Be7+ {[%clk 0:00:40]}  Kg6 {[%clk 0:01:28]} 27. Bxd8 {[%clk 0:00:39]}  Rxd8 {[%clk 0:01:29]} 28. Rb6+ {[%clk 0:00:40]}  f6 {[%clk 0:01:28]} 29. Ra1 {[%clk 0:00:28]}  Bc4 {[%clk 0:01:28]} 30. Rb7 {[%clk 0:00:29]}  Nf7 {[%clk 0:01:25]} 31. Ra4 {[%clk 0:00:24]}  Bd3 {[%clk 0:01:24]} 32. Ne6 {[%clk 0:00:22]}  Rd6 {[%clk 0:01:17]} 33. Nf4+ {[%clk 0:00:22]}  Kg5 {[%clk 0:01:17]} 34. Nxd3 {[%clk 0:00:23]}  Rxd3 {[%clk 0:01:14]} 35. Rxf7 {[%clk 0:00:23]} 1-0


[Site "https://www.chess.com"]

[Event "Titled Tuesday Blitz May 9 Early 2023"]
[White "Kvaloy, Aksel Bu"]
[Black "HamedWafa4"]
[WhiteFideId "1528815"]
[WhiteElo "2242"]
[BlackElo "2523"]
[Result "1-0"]
[Round "02"]
[TimeControl "180+2"]
[Date "2023.05.09"]
[WhiteClock "0:00:38"]
[BlackClock "0:00:14"]

1. e4 {[%clk 0:03:00]}  e5 {[%clk 0:02:59]} 2. Nf3 {[%clk 0:03:01]}  Nc6 {[%clk 0:02:59]} 3. Nc3 {[%clk 0:02:59]}  Nf6 {[%clk 0:02:58]} 4. d4 {[%clk 0:03:00]}  exd4 {[%clk 0:02:55]} 5. Nxd4 {[%clk 0:03:00]}  Bc5 {[%clk 0:02:54]} 6. Be3 {[%clk 0:02:59]}  Bb6 {[%clk 0:02:54]} 7. Qd2 {[%clk 0:02:53]}  O-O {[%clk 0:02:52]} 8. O-O-O {[%clk 0:02:53]}  d6 {[%clk 0:02:52]} 9. f3 {[%clk 0:02:52]}  Nxd4 {[%clk 0:02:51]} 10. Bxd4 {[%clk 0:02:52]}  Be6 {[%clk 0:02:52]} 11. g4 {[%clk 0:02:51]}  Nd7 {[%clk 0:02:51]} 12. Kb1 {[%clk 0:02:47]}  Qh4 {[%clk 0:02:32]} 13. Be2 {[%clk 0:02:32]}  Rfe8 {[%clk 0:02:18]} 14. f4 {[%clk 0:02:24]}  Bxd4 {[%clk 0:02:10]} 15. Qxd4 {[%clk 0:02:25]}  Qf6 {[%clk 0:02:01]} 16. f5 {[%clk 0:02:21]}  Qg5 {[%clk 0:01:30]} 17. h4 {[%clk 0:02:13]}  Qf4 {[%clk 0:01:25]} 18. fxe6 {[%clk 0:02:08]}  fxe6 {[%clk 0:01:24]} 19. Bb5 {[%clk 0:02:00]}  Rad8 {[%clk 0:01:16]} 20. Bxd7 {[%clk 0:01:59]}  Rxd7 {[%clk 0:01:17]} 21. g5 {[%clk 0:01:59]}  b6 {[%clk 0:01:12]} 22. Rdf1 {[%clk 0:01:56]}  Qg3 {[%clk 0:01:08]} 23. Qf2 {[%clk 0:01:55]}  Qe5 {[%clk 0:01:03]} 24. Rhg1 {[%clk 0:01:48]}  b5 {[%clk 0:00:59]} 25. Qf4 {[%clk 0:01:42]}  Qc5 {[%clk 0:00:56]} 26. Rg3 {[%clk 0:01:25]}  b4 {[%clk 0:00:53]} 27. Rgf3 {[%clk 0:01:25]}  g6 {[%clk 0:00:38]} 28. Na4 {[%clk 0:00:52]}  Qb5 {[%clk 0:00:29]} 29. h5 {[%clk 0:00:50]}  gxh5 {[%clk 0:00:24]} 30. b3 {[%clk 0:00:40]}  Rg7 {[%clk 0:00:14]} 31. Qf8+ {[%clk 0:00:38]} 1-0


[Site "https://www.chess.com"]